bitfinex-derivatives/quotes_SOLF0:USTF0_20250113
["timestamp","ask_amount","ask_price","bid_price","bid_amount"]
[1736797203363,23.62150432,177.61,177.46,22.01280432]
[1736797203754,2.8167,177.6,177.55,2.8172]
[1736797204264,2.8167,177.6,177.53,6.28]
[1736797204467,2.8167,177.6,177.56,2.8172]
[1736797205267,1.6087,177.61,177.53,6.28]
[1736797205862,2.8172,177.57,177.53,6.28]
[1736797207062,2.8172,177.57,177.53,9.0976]
[1736797207860,2.8173,177.56,177.51,2.8178]
[1736797208067,22.01280432,177.59,177.46,6.28]
[1736797208464,2.8171,177.57,177.53,2.8176]
[1736797208666,2.8171,177.57,177.46,28.29280432]
[1736797208964,1.6087,177.61,177.49,22.01280432]
[1736797209167,1.691,177.63,177.52,22.01280432]
[1736797209359,1.691,177.63,177.53,6.28]
[1736797209760,2.8163,177.62,177.58,2.8168]
[1736797210164,2.8167,177.59,177.55,2.8173]
[1736797210562,22.01280432,177.62,177.48,22.01280432]
[1736797210762,22.01280432,177.59,177.51,2.8179]
[1736797210966,1.5596,177.58,177.51,2.8179]
[1736797211867,1.5596,177.58,177.54,2.8174]
[1736797212068,1.5596,177.58,177.47,6.28]
[1736797212769,2.8172,177.57,177.53,2.8176]
[1736797213372,1.5596,177.58,177.53,2.8176]
[1736797213566,2.8173,177.55,177.47,6.28]
[1736797214570,1.5596,177.58,177.45,22.01280432]
[1736797214768,1.5596,177.58,177.46,6.28]
[1736797214975,2.8177,177.53,177.49,2.8182]
[1736797215174,3.2567,177.58,177.46,6.28]
[1736797216678,22.01280432,177.62,177.48,22.01280432]
[1736797216974,2.8166,177.6,177.57,2.817]
[1736797217772,2.8166,177.6,177.56,2.8171]
[1736797217974,2.8164,177.61,177.53,6.28]
[1736797218276,3.2633,177.63,177.56,2.8171]
[1736797218779,2.8166,177.6,177.56,2.817]
[1736797218983,2.8166,177.6,177.53,6.28]
[1736797219976,3.2633,177.63,177.53,6.28]
[1736797220179,1.5723,177.63,177.53,6.28]
[1736797220369,22.01280432,177.68,177.53,6.28]
[1736797220572,2.8161,177.63,177.59,2.8166]
[1736797220777,22.01280432,177.68,177.54,23.59930432]
[1736797221275,2.8156,177.66,177.54,23.59930432]
[1736797221875,2.8156,177.66,177.62,2.8161]
[1736797222781,2.815,177.7,177.66,2.8156]
[1736797223577,2.815,177.7,177.67,2.8153]
[1736797224072,2.8146,177.73,177.7,2.8149]
[1736797224280,2.8146,177.73,177.57,118.69280432]
[1736797224281,1.6172,177.78,177.68,6.28]
[1736797224576,1.6172,177.78,177.69,6.28]
[1736797224780,2.8141,177.76,177.72,2.8145]
[1736797224977,22.01280432,177.74,177.64,7.9263]
[1736797225179,22.01280432,177.74,177.64,6.28]
[1736797225380,22.01280432,177.77,177.64,28.29280432]
[1736797225581,1.6172,177.78,177.64,28.29280432]
[1736797225776,2.814,177.76,177.64,28.29280432]
[1736797226178,1.6172,177.78,177.64,28.29280432]
[1736797226677,1.6172,177.78,177.6,6.28]
[1736797226678,22.01280432,177.74,177.6,6.28]
[1736797226980,3.3467,177.73,177.6,6.28]
[1736797227176,22.01280432,177.71,177.6,6.28]
[1736797227482,2.8157,177.66,177.62,2.8162]
[1736797227677,2.8157,177.66,177.6,6.28]
[1736797227876,22.01280432,177.71,177.6,6.28]
[1736797228076,3.3467,177.73,177.65,2.8157]
[1736797229075,3.3467,177.73,177.66,2.8156]
[1736797229285,2.8148,177.71,177.66,2.8156]
[1736797229980,22.01280432,177.77,177.64,22.01280432]
[1736797230182,1.6172,177.78,177.64,22.01280432]
[1736797230687,2.8146,177.73,177.68,2.8151]
[1736797231080,2.8146,177.73,177.64,22.01280432]
[1736797231277,2.8146,177.73,177.69,2.8151]
[1736797231583,2.8142,177.75,177.67,6.28]
[1736797231784,1.6172,177.78,177.67,6.28]
[1736797232189,2.814,177.76,177.67,6.28]
[1736797232386,2.814,177.76,177.72,2.8146]
[1736797232780,2.8142,177.75,177.72,2.8146]
[1736797232981,1.6172,177.78,177.72,2.8146]
[1736797233886,2.8141,177.76,177.72,2.8146]
[1736797234383,2.8142,177.75,177.72,2.8146]
[1736797234788,1.6172,177.78,177.72,2.8146]
[1736797235085,22.01280432,177.8,177.72,2.8146]
[1736797235277,1.7121,177.8,177.67,6.28]
[1736797235481,1.7121,177.8,177.73,2.8145]
[1736797235681,2.814,177.77,177.73,2.8145]
[1736797235977,1.7121,177.8,177.73,2.8145]
[1736797236676,2.8136,177.79,177.75,2.8141]
[1736797236885,1.7121,177.8,177.68,23.66700432]
[1736797237186,1.7121,177.8,177.71,22.01280432]
[1736797237582,1.7121,177.8,177.73,2.8144]
[1736797237887,1.7121,177.8,177.67,6.28]
[1736797238288,1.7121,177.8,177.68,22.01280432]
[1736797238487,1.7121,177.8,177.68,23.70770432]
[1736797239188,2.8137,177.79,177.68,23.70770432]
[1736797239681,2.8137,177.79,177.74,2.8142]
[1736797240087,1.7121,177.8,177.68,23.70770432]
[1736797240281,1.7121,177.8,177.68,1.6949]
[1736797240597,0.96758043,177.79,177.66,6.26]
[1736797241090,0.96758043,177.79,177.68,2.8153]
[1736797241487,0.96758043,177.79,177.66,6.26]
[1736797241691,1.7121,177.8,177.66,6.26]
[1736797241692,2.814,177.76,177.66,6.26]
[1736797242189,2.814,177.76,177.71,2.8147]
[1736797242592,2.8142,177.75,177.71,2.8147]
[1736797245096,1.7121,177.8,177.66,6.26]
[1736797245295,1.7121,177.8,177.68,22.01280432]
[1736797245494,1.7121,177.8,177.69,1.5729]
[1736797245705,4.5256,177.8,177.76,2.8139]
[1736797245899,4.5256,177.8,177.73,6.26]
[1736797245900,1.7121,177.8,177.73,6.26]
[1736797247200,2.8136,177.79,177.75,2.8142]
[1736797247404,33.45750856,177.86,177.73,6.26]
[1736797247601,2.8136,177.79,177.76,2.814]
[1736797247795,2.8136,177.79,177.73,6.26]
[1736797248002,33.45750856,177.86,177.73,6.26]
[1736797248307,1.6731,177.88,177.73,28.27280432]
[1736797248509,1.6731,177.88,177.76,22.01280432]
[1736797249305,2.8129,177.84,177.76,22.01280432]
[1736797249508,1.6731,177.88,177.76,22.01280432]
[1736797249911,1.6731,177.88,177.81,2.8132]
[1736797250211,1.6731,177.88,177.8,6.26]
[1736797251506,2.8123,177.87,177.83,2.8128]
[1736797251702,2.8123,177.87,177.8,6.26]
[1736797251906,2.8127,177.85,177.81,2.8132]
[1736797252111,1.6731,177.88,177.8,6.26]
[1736797252312,23.68590432,177.88,177.8,6.26]
[1736797252505,2.8129,177.83,177.8,6.26]
[1736797253915,2.8132,177.81,177.8,6.26]
[1736797255415,2.813,177.83,177.8,6.26]
[1736797256722,2.8127,177.85,177.8,9.0733]
[1736797256918,1.6731,177.88,177.8,9.0733]
[1736797257514,2.8126,177.85,177.81,2.8131]
[1736797257718,1.6731,177.88,177.8,6.26]
[1736797258118,2.8124,177.86,177.82,2.813]
[1736797258315,1.6731,177.88,177.8,6.26]
[1736797258522,23.68590432,177.88,177.72,1.6335]
[1736797258823,22.01280432,177.85,177.73,6.26]
[1736797259121,1.7271,177.84,177.73,6.26]
[1736797259318,3.3723,177.84,177.75,2.814]
[1736797259920,2.8137,177.79,177.75,2.814]
[1736797260429,2.8137,177.79,177.73,6.26]
[1736797260430,22.01280432,177.78,177.64,22.01280432]
[1736797260621,22.01280432,177.78,177.6,119.31919295]
[1736797260622,22.01280432,177.75,177.6,22.75919295]
[1736797260923,22.01280432,177.75,177.6,30.3455906]
[1736797260924,3.3723,177.74,177.6,30.3455906]
[1736797261625,3.3723,177.74,177.59,22.01280432]
[1736797262026,3.3723,177.74,177.62,22.01280432]
[1736797262627,2.8146,177.73,177.62,22.01280432]
[1736797262927,3.3723,177.74,177.62,22.01280432]
[1736797263122,2.8148,177.72,177.65,2.8157]
[1736797263326,23.63590432,177.78,177.65,28.27280432]
[1736797263629,2.8142,177.75,177.69,2.815]
[1736797263820,1.6231,177.78,177.65,28.27280432]
[1736797264027,1.6231,177.78,177.68,22.01280432]
[1736797264525,3.3437,177.8,177.68,22.01280432]
[1736797264828,3.3437,177.8,177.66,23.69040432]
[1736797264829,1.6538,177.83,177.71,22.01280432]
[1736797265018,1.6538,177.83,177.72,6.26]
[1736797265220,4.4667,177.83,177.78,2.8137]
[1736797265523,3.2654,177.87,177.74,22.01280432]
[1736797265723,3.2654,177.87,177.75,1.6092]
[1736797266524,2.813,177.83,177.77,2.8137]
[1736797266929,25.27820432,177.87,177.75,1.6092]
[1736797267124,2.8135,177.8,177.74,2.8143]
[1736797267324,25.27820432,177.87,177.72,6.26]
[1736797267628,2.8133,177.81,177.75,2.814]
[1736797268128,2.8133,177.81,177.76,2.814]
[1736797268724,3.2654,177.87,177.74,22.01280432]
[1736797269828,2.813,177.83,177.78,2.8137]
[1736797270025,3.2654,177.87,177.78,2.8137]
[1736797270232,25.27820432,177.87,177.72,6.26]
[1736797270627,3.2654,177.87,177.74,22.01280432]
[1736797271132,2.8128,177.84,177.8,2.8133]
[1736797271527,2.8126,177.86,177.82,2.813]
[1736797272934,1.6538,177.89,177.8,22.01280432]
[1736797273332,1.6538,177.89,177.86,2.8124]
[1736797273533,6.75812516,177.93,177.83,22.01280432]
[1736797273927,2.8117,177.91,177.86,2.8123]
[1736797274129,2.8117,177.91,177.83,22.01280432]
[1736797274529,2.8115,177.92,177.87,2.8121]
[1736797274834,2.8115,177.92,177.83,22.01280432]
[1736797276428,2.8113,177.93,177.88,2.812]
[1736797276624,1.5765,177.95,177.86,28.27280432]
[1736797276831,1.5765,177.95,177.87,6.26]
[1736797277229,22.01280432,178.02,177.89,22.01280432]
[1736797277431,2.52426169,178.01,177.89,22.01280432]
[1736797277630,2.8104,177.99,177.89,22.01280432]
[1736797278432,2.8104,177.99,177.94,2.811]
[1736797278627,2.8104,177.99,177.89,22.01280432]
[1736797279137,1.5579,178.01,177.92,22.01280432]
[1736797279535,4.368,178.01,177.96,2.8108]
[1736797280635,2.8102,178.0,177.96,2.8108]
[1736797280936,1.5579,178.01,177.96,2.8108]
[1736797281136,4.3681,178.01,177.96,2.8108]
[1736797282840,2.8102,178.0,177.96,2.8108]
[1736797283132,2.8102,178.0,177.94,6.26]
[1736797283133,6.26,178.12,177.99,2.8103]
[1736797283336,1.7014,178.09,177.99,2.8103]
[1736797283536,0.96611144,178.08,177.99,2.8103]
[1736797283832,2.8097,178.04,177.99,2.8103]
[1736797284036,1.7014,178.09,177.95,22.01280432]
[1736797284239,1.7014,178.09,178.02,2.8099]
[1736797284440,2.8094,178.06,178.02,2.8099]
[1736797284738,1.7014,178.09,178.01,28.27280432]
[1736797284934,155.29843886,178.21,178.01,28.27280432]
[1736797285128,1.7014,178.16,178.04,22.01280432]
[1736797285338,1.7014,178.16,178.05,6.26]
[1736797285941,2.808,178.15,178.05,7.8229]
[1736797286530,2.808,178.15,178.08,2.809]
[1736797286735,2.8082,178.13,178.05,7.8229]
[1736797286940,22.01280432,178.15,178.05,7.8229]
[1736797287136,22.01280432,178.15,178.04,6.26]
[1736797287537,22.01280432,178.12,178.04,6.26]
[1736797288541,3.1159,178.11,178.04,6.26]
[1736797288734,22.01280432,178.09,177.99,6.26]
[1736797288938,22.01280432,178.09,177.98,6.26]
[1736797289338,22.01280432,178.09,178.0,2.8101]
[1736797289339,2.8095,178.05,178.0,2.8101]
[1736797289542,22.01280432,178.09,178.0,2.8101]
[1736797289836,22.01280432,178.09,178.01,2.81]
[1736797289837,2.8095,178.05,178.01,2.81]
[1736797293445,1.6266,178.08,177.98,6.26]
[1736797293842,3.1159,178.11,178.01,22.01280432]
[1736797294047,2.8087,178.1,178.05,2.8093]
[1736797294348,22.01280432,178.15,178.01,22.01280432]
[1736797294841,0.96560385,178.14,177.98,28.27280432]
[1736797295040,2.8092,178.07,178.03,2.8096]
[1736797295241,2.8092,178.07,177.98,28.27280432]
[1736797295437,3.3564,178.18,177.98,28.27280432]
[1736797295642,22.01280432,178.14,177.98,28.27280432]
[1736797296040,2.8088,178.1,178.04,2.8095]
[1736797296243,22.01280432,178.14,177.98,6.26]
[1736797296443,22.01280432,178.17,177.99,22.01280432]
[1736797296644,0.96556511,178.16,178.02,22.01280432]
[1736797296846,2.8088,178.1,178.06,2.8091]
[1736797297042,2.8088,178.1,178.05,6.26]
[1736797297243,22.01280432,178.17,178.05,6.26]
[1736797297442,0.96553618,178.16,178.05,6.26]
[1736797297648,22.01280432,178.14,178.0,6.26]
[1736797297949,2.8096,178.04,178.01,2.81]
[1736797298339,22.01280432,178.14,178.0,6.26]
[1736797298638,0.96569411,178.13,178.0,6.26]
[1736797298844,2.8094,178.06,178.02,2.8099]
[1736797299041,22.01280432,178.14,178.0,6.26]
[1736797299347,2.8092,178.07,178.03,2.8096]
[1736797300649,2.8092,178.07,178.0,6.26]
[1736797300845,2.8089,178.09,178.0,6.26]
[1736797301044,6.26,178.16,178.02,22.01280432]
[1736797301245,22.01280432,178.17,178.08,2.8088]
[1736797301440,22.01280432,178.17,178.02,22.01280432]
[1736797301645,0.96553886,178.16,178.02,22.01280432]
[1736797302751,2.8088,178.09,178.05,2.8093]
[1736797302952,22.01280432,178.17,178.02,22.01280432]
[1736797303249,0.96555045,178.16,178.02,22.01280432]
[1736797303451,2.8086,178.11,178.08,2.8089]
[1736797303648,22.01280432,178.2,178.05,22.01280432]
[1736797303948,0.96550498,178.17,178.07,2.809]
[1736797304253,22.01280432,178.14,178.02,6.26]
[1736797304456,2.8086,178.11,178.03,2.8096]
[1736797304654,1.7025,178.1,178.03,2.8096]
[1736797304948,1.7025,178.1,178.01,6.26]
[1736797305145,2.8089,178.09,178.01,6.26]
[1736797305351,2.8089,178.09,178.02,22.01280432]
[1736797305747,22.01280432,178.17,178.02,22.01280432]
[1736797305955,1.7025,178.16,178.01,28.27280432]
[1736797306150,1.7025,178.16,178.04,22.01280432]
[1736797306454,1.7025,178.16,178.07,2.809]
[1736797306851,2.8086,178.11,178.08,2.8089]
[1736797307256,1.7025,178.16,178.01,22.01280432]
[1736797307456,1.7025,178.16,178.04,2.8095]
[1736797308057,0.96554524,178.15,178.04,2.8095]
[1736797308357,1.7025,178.16,178.02,6.26]
[1736797308559,1.7025,178.16,178.04,22.01280432]
[1736797308953,2.8083,178.13,178.08,2.8088]
[1736797309158,2.8083,178.13,178.04,22.01280432]
[1736797309159,1.7025,178.16,178.04,22.01280432]
[1736797309754,2.8082,178.13,178.1,2.8086]
[1736797310058,1.7025,178.16,178.07,22.01280432]
[1736797311150,1.7025,178.16,178.06,6.26]
[1736797311757,1.7025,178.16,178.06,9.0692]
[1736797311758,2.8088,178.09,178.06,9.0692]
[1736797312457,1.7025,178.16,177.99,22.01280432]
[1736797312651,22.01280432,178.14,177.99,22.01280432]
[1736797312850,22.01280432,178.14,177.98,6.26]
[1736797313259,22.01280432,178.14,177.99,22.01280432]
[1736797313758,2.8091,178.08,177.99,22.01280432]
[1736797314163,2.8091,178.08,178.04,2.8095]
[1736797314358,22.01280432,178.14,177.99,22.01280432]
[1736797314663,2.8093,178.08,177.99,22.01280432]
[1736797315065,2.8093,178.08,178.04,2.8097]
[1736797315665,2.8093,178.08,178.05,2.8097]
[1736797318166,2.8093,178.08,178.04,2.8098]
[1736797318960,1.7025,178.16,178.02,22.01280432]
[1736797319361,15.33250746,178.16,178.04,13.63000746]
[1736797319564,2.8091,178.09,178.06,2.8095]
[1736797319866,15.33250746,178.16,178.04,13.63000746]
[1736797320463,2.8093,178.08,178.05,2.8097]
[1736797320866,15.33250746,178.16,178.04,13.63000746]
[1736797321067,15.33250746,178.16,178.04,16.43980746]
[1736797321268,13.63000746,178.13,178.01,13.63000746]
[1736797321568,2.8103,178.02,177.98,2.8108]
[1736797321763,13.63000746,178.07,177.95,13.63000746]
[1736797322070,2.8109,177.98,177.94,2.8114]
[1736797322569,13.63000746,178.04,177.93,157.76809506]
[1736797322764,13.63000746,178.04,177.93,164.02809506]
[1736797322967,13.63000746,178.04,177.96,2.8111]
[1736797323464,2.8106,178.0,177.96,2.8111]
[1736797323665,5.0091,178.06,177.95,2.8112]
[1736797324772,2.8102,178.02,177.98,2.8107]
[1736797325168,5.0091,178.06,177.95,21.83335247]
[1736797325371,2.8106,178.0,177.96,2.811]
[1736797325576,5.0091,178.06,177.96,2.811]
[1736797325969,2.8107,177.99,177.95,2.8112]
[1736797326573,5.0091,178.06,177.93,164.02809506]
[1736797326779,5.0091,178.06,177.96,2.811]
[1736797327473,5.0091,178.06,177.93,164.02809506]
[1736797327679,5.0091,178.06,177.93,96.5]
[1736797327867,12.21462662,178.06,177.93,96.5]
[1736797328071,12.21462662,178.06,177.95,21.83335247]
[1736797328269,2.8101,178.03,177.99,2.8106]
[1736797328478,2.8101,178.03,177.96,6.26]
[1736797328775,2.81,178.04,178.0,2.8104]
[1736797329075,1.6968,178.06,177.98,21.83335247]
[1736797329678,2.81,178.04,178.01,2.8102]
[1736797329878,2.81,178.04,177.98,21.83335247]
[1736797330279,2.81,178.04,178.0,2.8104]
[1736797330473,2.8097,178.05,177.98,21.83335247]
[1736797330674,3.3085,178.11,177.98,21.83335247]
[1736797330880,3.3085,178.11,178.01,21.83335247]
[1736797331379,3.3085,178.11,177.98,21.83335247]
[1736797331680,3.3085,178.11,177.96,6.26]
[1736797331988,3.3085,178.11,178.0,2.8103]
[1736797332179,2.8094,178.07,178.0,2.8103]
[1736797332378,3.3085,178.11,178.0,2.8103]
[1736797332784,3.3085,178.11,177.96,6.26]
[1736797332785,21.83335247,178.06,177.94,1.6646]
[1736797332985,21.83335247,178.06,177.93,96.5]
[1736797333283,1.6569,178.05,177.93,96.5]
[1736797333484,1.6569,178.05,177.95,2.8111]
[1736797333682,1.6569,178.05,177.93,96.5]
[1736797335389,2.8103,178.02,177.97,2.811]
[1736797335588,1.6569,178.05,177.93,96.5]
[1736797335784,1.6569,178.05,177.95,21.83335247]
[1736797336282,3.3085,178.11,177.95,21.83335247]
[1736797336478,4.8882,178.11,177.98,21.83335247]
[1736797336678,4.8882,178.11,177.96,1.6878]
[1736797336679,1.5797,178.11,178.01,21.83335247]
[1736797336884,2.809,178.1,178.06,2.8094]
[1736797337189,21.83335247,178.15,178.01,21.83335247]
[1736797337488,2.8089,178.11,178.07,2.8093]
[1736797337890,2.8091,178.09,178.05,2.8097]
[1736797338289,23.41305247,178.15,178.01,21.83335247]
[1736797338491,1.5797,178.15,178.04,21.83335247]
[1736797338683,1.6255,178.18,178.05,1.649]
[1736797338881,1.6255,178.18,178.07,21.83335247]
[1736797339081,2.8081,178.16,178.11,2.8086]
[1736797339483,1.6255,178.18,178.11,2.8086]
[1736797339682,2.808,178.16,178.11,2.8086]
[1736797339887,1.6255,178.18,178.11,2.8086]
[1736797340082,1.6255,178.18,178.07,21.83335247]
[1736797340281,2.8083,178.14,178.1,2.8089]
[1736797340796,1.6255,178.18,178.06,6.26]
[1736797340990,0.96536679,178.17,178.06,6.26]
[1736797341189,21.83335247,178.15,178.06,6.26]
[1736797341585,2.8092,178.09,178.06,6.26]
[1736797341792,21.83335247,178.15,178.06,6.26]
[1736797342190,2.8089,178.1,178.06,6.26]
[1736797342691,21.83335247,178.15,177.99,21.83335247]
[1736797342891,21.83335247,178.12,178.01,6.26]
[1736797343191,1.5696,178.11,178.01,6.26]
[1736797343492,3.1446,178.11,178.01,6.26]
[1736797344187,21.83335247,178.15,178.01,6.26]
[1736797344393,2.8089,178.1,178.05,2.8097]
[1736797344592,2.8089,178.1,178.01,6.26]
[1736797345385,2.8094,178.07,178.01,6.26]
[1736797345590,3.1588,178.17,178.01,6.26]
[1736797345792,21.83335247,178.15,178.06,2.8094]
[1736797345993,21.83335247,178.15,178.02,21.83335247]
[1736797346185,21.83335247,178.15,178.01,6.26]
[1736797346591,21.83335247,178.12,177.99,6.24]
[1736797346991,2.8096,178.06,178.02,2.8101]
[1736797347494,21.83335247,178.12,178.02,2.8101]
[1736797347692,21.83335247,178.12,178.03,2.8099]
[1736797347891,21.83335247,178.12,177.99,6.24]
[1736797348293,2.8092,178.09,178.02,2.8101]
[1736797348496,21.83335247,178.09,177.93,370.60251478]
[1736797348692,21.83335247,178.06,177.93,102.74]
[1736797349097,2.8105,178.01,177.93,96.5]
[1736797349398,21.83335247,178.06,177.94,6.24]
[1736797350198,21.83335247,178.06,177.93,96.5]
[1736797350397,0.96601988,178.05,177.93,96.5]
[1736797350794,2.8108,177.99,177.95,2.8113]
[1736797351495,21.83335247,178.06,177.93,96.5]
[1736797351689,2.8101,178.03,177.99,2.8106]
[1736797351895,4.8733,178.08,177.99,2.8106]
[1736797352194,2.8101,178.03,177.99,2.8106]
[1736797352603,4.8733,178.08,177.96,21.83335247]
[1736797353899,1.7172,178.08,177.96,21.83335247]
[1736797354100,21.83335247,178.15,177.99,21.83335247]
[1736797354401,2.8088,178.11,178.07,2.8093]
[1736797354600,1.7219,178.15,178.05,21.83335247]
[1736797354795,1.7219,178.15,178.07,6.26]
[1736797355199,21.83335247,178.2,178.07,6.26]
[1736797355396,21.83335247,178.2,178.08,1.5804]
[1736797355798,2.8081,178.16,178.11,2.8086]
[1736797356102,2.8081,178.16,178.08,1.5804]
[1736797357202,21.83335247,178.2,178.08,1.5804]
[1736797357399,2.8082,178.15,178.08,1.5804]
[1736797358406,2.8079,178.17,178.12,2.8085]
[1736797358907,21.83335247,178.2,178.12,2.8085]
[1736797359401,5.0738,178.22,178.13,2.8083]
[1736797359602,0.96511787,178.21,178.08,23.41375247]
[1736797360110,5.0738,178.22,178.08,23.41375247]
[1736797360311,0.96512041,178.21,178.12,2.8086]
[1736797360607,5.0738,178.22,178.12,2.8086]
[1736797360805,2.808,178.16,178.12,2.8086]
[1736797362209,2.8078,178.18,178.12,2.8086]
[1736797362405,2.8078,178.18,178.08,23.41375247]
[1736797363414,2.8078,178.18,178.14,2.8081]
[1736797365510,5.0738,178.22,178.12,2.8085]
[1736797365909,21.83335247,178.2,178.08,1.5804]
[1736797366111,5.0738,178.22,178.08,23.41375247]
[1736797367306,2.808,178.16,178.08,1.5804]
[1736797367512,13.62550419,178.19,178.11,2.8086]
[1736797368512,2.8083,178.14,178.11,2.8086]
[1736797368707,13.62550419,178.19,178.08,2.8092]
[1736797368904,13.62550419,178.19,178.07,13.62550419]
[1736797369306,2.8084,178.14,178.1,2.8088]
[1736797369707,2.8084,178.14,178.06,6.24]
[1736797369913,2.8082,178.15,178.12,2.8086]
[1736797370310,5.0738,178.22,178.08,21.80224295]
[1736797370507,5.0738,178.22,178.09,1.637]
[1736797370712,2.8079,178.17,178.13,2.8083]
[1736797372214,2.8079,178.17,178.14,2.8082]
[1736797373016,2.8077,178.18,178.09,1.637]
[1736797373317,5.0738,178.22,178.09,1.637]
[1736797373618,2.8079,178.17,178.14,2.8082]
[1736797375014,2.8076,178.19,178.13,6.24]
[1736797375210,5.0738,178.22,178.13,6.24]
[1736797375918,2.8077,178.18,178.15,2.808]
[1736797376218,5.0738,178.22,178.09,1.637]
[1736797376417,5.0738,178.22,178.1,6.24]
[1736797376819,5.0738,178.22,178.12,2.8086]
[1736797377415,2.8081,178.16,178.12,2.8086]
[1736797378008,5.0738,178.22,178.09,1.637]
[1736797378316,21.80224295,178.2,178.09,2.809]
[1736797378818,2.8087,178.12,178.09,2.809]
[1736797379013,21.80224295,178.2,178.09,2.809]
[1736797379219,21.80224295,178.17,178.04,96.4]
[1736797379419,2.8093,178.08,178.04,96.4]
[1736797379817,2.8093,178.08,178.05,2.8096]
[1736797381424,2.8091,178.09,178.05,2.8096]
[1736797383118,1.7019,178.13,178.04,96.4]
[1736797383415,5.6135,178.24,178.05,21.80224295]
[1736797383617,1.6196,178.21,178.11,21.80224295]
[1736797383818,1.6196,178.21,178.13,2.8084]
[1736797384515,1.6196,178.21,178.11,6.24]
[1736797385022,21.80224295,178.19,178.06,6.24]
[1736797385216,0.9651597,178.18,178.06,6.24]
[1736797386516,2.809,178.1,178.06,9.0494]
[1736797386921,2.809,178.1,178.06,6.24]
[1736797387219,2.8096,178.06,178.04,96.4]
[1736797387613,21.80224295,178.16,178.04,96.4]
[1736797387812,2.8094,178.07,178.04,96.4]
[1736797390526,1.7213,178.13,178.04,110.035162]
[1736797391121,2.8086,178.12,178.04,110.035162]
[1736797391923,1.7213,178.13,178.04,110.035162]
[1736797392116,15.356462,178.13,178.04,96.4]
[1736797392523,2.8096,178.06,178.04,96.4]
[1736797393423,15.356462,178.13,178.04,96.4]
[1736797393627,2.8097,178.05,178.04,96.4]
[1736797393829,13.635162,178.1,178.02,61.23964989]
[1736797394825,2.8099,178.04,178.02,61.23964989]
[1736797395132,1.7213,178.13,178.02,61.23964989]
[1736797395326,1.7213,178.13,178.05,13.635162]
[1736797395524,2.8089,178.11,178.05,13.635162]
[1736797395720,1.7213,178.13,178.07,2.8092]
[1736797395930,1.7213,178.13,178.05,13.635162]
[1736797396131,1.7213,178.13,178.02,74.87481189]
[1736797396626,2.8094,178.07,178.04,2.8097]
[1736797397025,1.7213,178.13,178.06,2.8095]
[1736797397026,2.8091,178.09,178.06,2.8095]
[1736797397929,1.7213,178.13,178.02,74.87481189]
[1736797398831,1.7213,178.13,178.03,2.81]
[1736797399030,13.635162,178.11,177.99,13.635162]
[1736797399232,2.8093,178.08,178.0,2.8104]
[1736797399427,13.635162,178.11,178.0,2.8104]
[1736797399627,13.635162,178.11,177.99,13.635162]
[1736797400031,1.7213,178.13,178.02,13.635162]
[1736797400234,1.7213,178.13,178.05,13.635162]
[1736797400436,2.8089,178.1,178.07,2.8093]
[1736797400633,1.7213,178.13,178.05,19.875162]
[1736797400831,1.7213,178.13,178.05,6.24]
[1736797402034,2.8092,178.09,178.06,2.8095]
[1736797402830,1.7213,178.13,178.02,13.635162]
[1736797403038,1.7213,178.13,178.0,6.24]
[1736797403039,13.635162,178.11,178.0,6.24]
[1736797403432,2.8103,178.02,178.0,6.24]
[1736797403628,21.82548105,178.08,177.96,1.6383]
[1736797403830,2.8107,177.99,177.96,2.8111]
[1736797404137,21.82548105,178.08,177.96,2.8111]